bitfinex-derivatives/quotes_ETHF0:USTF0_20240913
["timestamp","ask_amount","ask_price","bid_price","bid_amount"]
[1726242444390,0.41669,2399.5,2399.4,0.41669]
[1726242444574,1.4081,2399.7,2399.2,3.2078]
[1726242444884,0.41666,2399.7,2399.6,0.41667]
[1726242445675,0.41666,2399.7,2399.5,3.2078]
[1726242445676,0.41662,2399.9,2399.8,0.41663]
[1726242445876,1.4043,2400.0,2399.9,0.41662]
[1726242445877,0.41661,2400.0,2399.9,0.41662]
[1726242446076,0.41662,2399.9,2399.8,3.62442]
[1726242446279,0.41661,2400.0,2399.9,0.41661]
[1726242446475,0.41661,2400.0,2399.6,1.3839]
[1726242446476,0.41662,2399.9,2399.8,0.41662]
[1726242446678,0.41661,2400.0,2399.9,0.41661]
[1726242447082,0.4166,2400.0,2399.9,0.41662]
[1726242447392,1.4081,2400.1,2399.6,1.3839]
[1726242447393,1.4081,2400.1,2399.6,2.42556]
[1726242447690,0.41657,2400.2,2400.1,0.41657]
[1726242447889,0.41657,2400.2,2399.8,4.24938]
[1726242447890,4.5282,2400.4,2399.9,1.04153]
[1726242448089,1.04138,2400.3,2399.8,3.2078]
[1726242448284,1.04138,2400.3,2399.6,1.3839]
[1726242448486,0.41662,2400.0,2399.9,0.41661]
[1726242448687,0.41662,2399.9,2399.8,3.62443]
[1726242448889,0.41661,2400.0,2399.9,0.41661]
[1726242449294,0.41659,2400.1,2400.0,0.41659]
[1726242449684,0.41661,2400.0,2399.9,0.41661]
[1726242449883,0.41659,2400.1,2400.0,0.41659]
[1726242450192,4.5282,2400.4,2399.6,1.3839]
[1726242450385,0.41661,2400.0,2399.9,0.41661]
[1726242450594,0.41661,2400.0,2399.6,2.42557]
[1726242450595,0.41658,2400.2,2400.1,0.41657]
[1726242450889,0.41657,2400.2,2400.1,0.41657]
[1726242451299,0.41654,2400.4,2400.3,0.41655]
[1726242451985,3.2078,2400.8,2400.0,4.2493]
[1726242452186,0.4165,2400.6,2400.5,0.4165]
[1726242452385,3.2078,2401.1,2400.4,1.3402]
[1726242452586,0.41653,2400.4,2400.3,3.2078]
[1726242452784,1.45786,2400.4,2400.3,3.2078]
[1726242452989,1.45786,2400.4,2400.0,1.3402]
[1726242452990,0.41656,2400.3,2400.2,0.41655]
[1726242453600,0.41657,2400.3,2400.2,0.41656]
[1726242453793,1.04128,2400.6,2400.0,4.548]
[1726242454000,0.41654,2400.4,2400.3,0.41654]
[1726242454299,0.41658,2400.1,2400.0,4.96459]
[1726242454486,0.41663,2399.9,2399.8,0.41663]
[1726242454691,0.41663,2399.8,2399.7,3.62444]
[1726242455688,0.41663,2399.8,2399.3,6.7819]
[1726242455689,0.41668,2399.6,2399.5,0.41667]
[1726242456094,0.4167,2399.4,2399.3,5.03721]
[1726242456294,0.4167,2399.4,2399.3,3.62452]
[1726242456492,0.4167,2399.4,2399.3,3.2078]
[1726242456696,0.41677,2399.1,2398.9,3.2078]
[1726242456996,0.41677,2399.1,2399.0,0.41676]
[1726242457401,1.3466,2399.3,2398.9,3.2078]
[1726242457696,0.41673,2399.3,2399.2,0.41672]
[1726242457903,0.41677,2399.0,2398.9,3.62458]
[1726242458388,0.41677,2399.0,2398.9,3.2078]
[1726242458593,0.41681,2398.8,2398.7,0.41681]
[1726242458994,0.4168,2398.9,2398.8,0.4168]
[1726242459997,0.41681,2398.8,2398.7,3.2078]
[1726242460197,0.41684,2398.7,2398.6,0.41684]
[1726242460394,0.41681,2398.8,2398.7,0.41681]
[1726242461392,0.4168,2398.9,2398.8,0.4168]
[1726242461594,1.04198,2399.0,2398.9,0.41678]
[1726242461595,0.41679,2399.0,2398.9,0.41678]
[1726242461799,3.2078,2399.3,2398.8,3.2078]
[1726242461989,3.2078,2399.3,2399.1,0.41675]
[1726242461990,0.41675,2399.2,2399.1,0.41675]
[1726242462191,3.2078,2399.3,2399.2,0.41674]
[1726242462491,3.2078,2399.3,2398.8,4.24981]
[1726242462492,0.41674,2399.2,2398.8,4.24981]
[1726242462797,2.7792,2399.5,2399.3,0.41671]
[1726242462989,2.7792,2399.5,2399.4,0.41669]
[1726242462990,0.41669,2399.5,2399.4,0.41669]
[1726242463190,3.62446,2399.7,2399.6,0.41667]
[1726242463397,0.41671,2399.4,2399.3,0.41671]
[1726242463592,0.4167,2399.5,2399.1,3.2078]
[1726242463793,0.41668,2399.6,2399.1,3.2078]
[1726242463995,0.41668,2399.6,2399.3,0.41671]
[1726242463996,0.41671,2399.4,2399.3,0.41671]
[1726242464198,0.41669,2399.5,2399.4,0.41669]
[1726242464503,1.04164,2399.7,2399.1,3.2078]
[1726242464698,0.41671,2399.4,2399.3,0.41671]
[1726242465797,0.41669,2399.5,2399.4,0.4167]
[1726242466296,0.33099585,2400.4,2399.4,0.4167]
[1726242466297,0.41647,2400.8,2400.6,0.41648]
[1726242466496,3.2078,2401.7,2399.5,4.1672]
[1726242466497,0.41644,2401.0,2400.8,0.41645]
[1726242466696,1.397,2401.2,2400.8,0.41645]
[1726242466895,1.397,2401.2,2400.7,3.2078]
[1726242467104,1.8134,2401.2,2400.7,3.2078]
[1726242467289,0.41641,2401.1,2400.7,3.2078]
[1726242467609,1.8134,2401.2,2400.9,0.41643]
[1726242467898,0.41643,2401.0,2400.7,3.62427]
[1726242468100,1.397,2401.2,2400.7,3.2078]
[1726242468292,1.397,2401.2,2400.7,3.62426]
[1726242468595,0.41643,2401.0,2400.8,0.41646]
[1726242468799,0.41641,2401.1,2400.8,0.41646]
[1726242468995,0.41641,2401.1,2400.7,3.2078]
[1726242469199,0.41645,2400.9,2400.7,3.2078]
[1726242469401,0.41646,2400.8,2400.7,3.2078]
[1726242469596,5.20583,2401.1,2400.7,3.2078]
[1726242469995,0.41646,2400.8,2400.7,3.2078]
[1726242470205,1.397,2401.2,2400.9,0.41643]
[1726242470502,1.397,2401.2,2400.9,0.41644]
[1726242470699,1.0406,2402.1,2401.1,3.2078]
[1726242471002,3.2078,2401.8,2401.2,3.2078]
[1726242471194,0.41628,2401.9,2401.2,3.2078]
[1726242471396,0.41626,2402.0,2401.5,3.2078]
[1726242471594,4.5758,2402.2,2401.5,3.2078]
[1726242471795,4.5758,2402.2,2401.7,0.41629]
[1726242471999,4.99202,2402.2,2401.8,0.41629]
[1726242472199,4.5758,2402.2,2401.5,3.2078]
[1726242472403,0.41625,2402.1,2401.7,0.41629]
[1726242472610,4.5758,2402.2,2401.5,3.2078]
[1726242472804,4.5758,2402.2,2401.8,3.2078]
[1726242472805,1.368,2402.2,2401.8,3.2078]
[1726242473104,1.3308,2402.4,2401.8,3.2078]
[1726242473506,1.3308,2402.4,2401.4,2.46036]
[1726242473507,0.41621,2402.3,2402.1,3.2078]
[1726242473704,1.3308,2402.4,2402.0,0.41624]
[1726242473893,3.2078,2402.7,2402.1,3.2078]
[1726242474096,3.2078,2402.7,2401.8,3.2078]
[1726242474097,4.24815,2402.7,2401.8,3.2078]
[1726242474300,0.41619,2402.4,2401.6,4.01]
[1726242474494,1.3717,2403.1,2401.4,1.4195]
[1726242474495,1.04012,2403.2,2402.2,3.2078]
[1726242474696,1.04012,2403.2,2402.6,3.62395]
[1726242474994,1.04012,2403.2,2402.6,3.62394]
[1726242475196,4.589,2403.3,2402.6,3.2078]
[1726242475197,3.2078,2403.3,2402.6,3.2078]
[1726242475401,1.04002,2403.5,2403.2,0.41604]
[1726242475402,0.416,2403.5,2403.2,0.41604]
[1726242475602,0.41608,2403.1,2402.7,3.2078]
[1726242475804,0.41606,2403.2,2402.7,3.2078]
[1726242476004,0.41606,2403.2,2402.8,0.41611]
[1726242476205,3.2078,2403.6,2402.7,3.2078]
[1726242476206,1.03998,2403.6,2402.7,3.2078]
[1726242476505,1.03998,2403.6,2403.0,3.62388]
[1726242476506,0.41604,2403.3,2403.0,3.62388]
[1726242476705,0.41599,2403.5,2403.2,0.41603]
[1726242476898,0.416,2403.5,2403.2,0.41604]
[1726242477096,2.4247,2403.8,2403.0,3.2078]
[1726242477309,0.416,2403.5,2403.2,0.41604]
[1726242477505,2.42467,2403.8,2403.0,3.2078]
[1726242477506,1.3848,2403.8,2403.0,3.2078]
[1726242477710,1.3848,2403.8,2403.5,0.41598]
[1726242478004,1.33000001,2403.9,2403.3,3.2078]
[1726242478204,4.6244,2405.1,2403.7,7.7078]
[1726242478397,1.0396,2404.5,2403.9,3.2078]
[1726242478601,0.41588,2404.2,2403.9,3.2078]
[1726242478906,1.0396,2404.5,2403.9,3.2078]
[1726242478907,0.41591,2404.0,2403.9,3.2078]
[1726242479408,0.41591,2404.0,2403.5,3.2078]
[1726242479409,0.41598,2403.7,2403.5,3.2078]
[1726242479806,0.41591,2404.0,2403.5,3.2078]
[1726242479998,0.41598,2403.6,2403.5,3.2078]
[1726242480314,1.03969,2404.2,2403.1,3.2078]
[1726242480505,1.03969,2404.2,2403.2,0.41604]
[1726242480707,1.03982,2403.9,2403.1,3.2078]
[1726242481006,3.2078,2403.2,2401.8,3.2078]
[1726242481208,3.2078,2403.2,2401.2,3.2078]
[1726242481209,1.04051,2402.3,2401.2,3.2078]
[1726242481405,1.04068,2401.9,2401.2,3.2078]
[1726242481603,1.04072,2401.8,2401.2,3.2078]
[1726242481805,1.04077,2401.7,2401.2,3.2078]
[1726242481999,1.04081,2401.6,2400.9,0.53085116]
[1726242482205,3.2078,2401.8,2400.9,0.53085116]
[1726242482415,1.3345,2401.9,2401.3,0.41637]
[1726242482709,1.3345,2401.9,2401.2,3.62418]
[1726242482918,4.5504,2402.2,2401.2,3.2078]
[1726242483208,0.41628,2401.9,2401.5,0.41633]
[1726242483397,1.3426,2402.2,2401.7,3.6241]
[1726242483598,4.24822,2402.6,2401.7,3.2078]
[1726242483805,0.41621,2402.3,2401.9,0.41626]
[1726242484011,0.41621,2402.3,2401.7,3.2078]
[1726242484012,1.3345,2402.7,2402.0,0.41625]
[1726242484312,0.4162,2402.4,2402.0,3.2078]
[1726242484510,1.03996,2403.6,2402.8,0.7]
[1726242484699,1.3345,2404.4,2403.4,3.2078]
[1726242484903,0.41599,2403.5,2403.4,3.2078]
[1726242485114,1.3345,2404.4,2402.8,3.2078]
[1726242485115,4.5,2404.2,2402.8,3.2078]
[1726242485413,1.04,2403.5,2402.8,3.2078]
[1726242485611,0.41599,2403.5,2403.1,3.2078]
[1726242485814,3.2078,2403.8,2403.1,3.2078]
[1726242486008,1.4375,2404.1,2403.1,3.2078]
[1726242486202,1.8534,2404.1,2403.5,0.41598]
[1726242486406,3.2078,2403.6,2403.3,0.41603]
[1726242486599,0.41598,2403.6,2403.0,3.62387]
[1726242486804,0.41597,2403.7,2403.1,0.41605]
[1726242487010,3.2078,2403.8,2403.0,3.2078]
[1726242487202,3.2078,2403.8,2403.2,0.41604]
[1726242487403,0.41597,2403.7,2403.1,0.41605]
[1726242487603,0.41599,2403.6,2403.0,3.62387]
[1726242487814,0.41599,2403.6,2403.1,0.41606]
[1726242488011,3.2078,2403.5,2402.7,3.2078]
[1726242488202,0.41608,2403.1,2402.7,3.2078]
[1726242488408,1.03999,2403.5,2402.7,3.2078]
[1726242488409,0.41609,2403.0,2402.7,3.2078]
[1726242488603,0.41607,2403.1,2402.7,3.2078]
[1726242488821,3.2078,2403.3,2402.7,3.2078]
[1726242489119,0.4161,2402.9,2402.7,3.2078]
[1726242489315,0.41607,2403.1,2402.7,3.2078]
[1726242489508,7.3694,2403.3,2402.7,3.2078]
[1726242489714,0.41611,2402.8,2402.7,3.2078]
[1726242489920,4.24809,2402.9,2402.2,0.41621]
[1726242490115,0.41617,2402.5,2402.1,0.41622]
[1726242490416,0.41619,2402.4,2402.0,3.2078]
[1726242490614,0.41619,2402.4,2402.0,3.62404]
[1726242490916,3.2078,2402.6,2402.0,3.2078]
[1726242491119,0.41618,2402.5,2402.1,0.41622]
[1726242491709,3.2078,2402.6,2402.0,3.62405]
[1726242491710,0.41619,2402.4,2402.0,3.62405]
[1726242492320,0.41619,2402.4,2402.0,3.62404]
[1726242492716,0.4162,2402.3,2402.0,3.2078]
[1726242493115,0.4162,2402.3,2402.0,3.62405]
[1726242493413,44.0078,2402.6,2402.0,3.62405]
[1726242493615,0.4162,2402.3,2402.0,3.2078]
[1726242493813,0.4162,2402.3,2401.7,4.5]
[1726242493814,45.3482,2402.6,2401.6,3.2078]
[1726242494117,0.41636,2401.4,2401.3,3.2078]
[1726242494321,4.5,2402.5,2401.7,0.4163]
[1726242494322,0.41623,2402.1,2401.7,0.4163]
[1726242494519,0.41631,2401.7,2401.3,3.62417]
[1726242494708,1.04068,2401.9,2401.3,3.2078]
[1726242494913,3.2078,2403.2,2402.1,1.04056]
[1726242495112,3.2078,2403.2,2402.7,3.2078]
[1726242495313,0.41607,2403.1,2402.7,3.2078]
[1726242495615,0.41605,2403.2,2402.7,3.2078]
[1726242495915,4.24782,2403.5,2402.8,0.41611]
[1726242496306,4.24782,2403.5,2402.7,3.2078]
[1726242496513,0.41604,2403.3,2402.8,0.4161]
[1726242496719,0.41606,2403.2,2402.8,0.41611]
[1726242496920,0.41604,2403.3,2402.9,0.4161]
[1726242497423,0.41604,2403.3,2402.9,0.41609]
[1726242497610,0.41605,2403.2,2402.8,0.4161]
[1726242497814,0.41604,2403.3,2402.7,3.2078]
[1726242498010,3.2078,2403.5,2402.8,0.41611]
[1726242498317,1.04003,2403.4,2402.8,0.41611]
[1726242498507,1.04003,2403.4,2402.7,3.2078]
[1726242498713,3.62385,2403.2,2402.8,0.41611]
[1726242498913,0.41607,2403.1,2402.7,3.62392]
[1726242499310,3.2078,2403.2,2402.7,3.2078]
[1726242499512,3.2078,2402.9,2402.2,1.391]
[1726242499711,0.41612,2402.8,2402.4,0.41617]
[1726242499919,3.2078,2402.9,2402.3,3.62399]
[1726242499920,0.41613,2402.7,2402.3,3.62399]
[1726242500217,1.04029,2402.8,2402.0,3.2078]
[1726242500421,3.2078,2402.9,2402.0,3.2078]
[1726242500422,0.41618,2402.5,2402.0,3.2078]
[1726242500721,0.41618,2402.5,2402.1,0.41623]
[1726242500913,1.04034,2402.7,2402.1,0.41623]
[1726242501117,0.41618,2402.4,2402.0,3.2078]
[1726242501318,4.24821,2402.6,2402.0,3.2078]
[1726242501511,0.41622,2402.2,2401.9,0.41626]
[1726242502320,0.41629,2401.8,2401.7,3.2078]
[1726242502622,4.58029,2401.8,2401.7,3.2078]
[1726242502824,4.58029,2401.8,2401.5,0.41633]
[1726242503019,2.48853,2402.1,2401.6,0.41632]
[1726242503020,0.41628,2401.9,2401.6,0.41632]
[1726242503725,0.41628,2401.9,2401.4,3.2078]
[1726242503726,0.41626,2402.0,2401.4,3.2078]
[1726242503923,0.41626,2402.0,2401.6,0.41631]
[1726242504317,4.6557,2402.1,2401.6,0.41631]
[1726242504318,0.41627,2401.9,2401.6,0.41631]
[1726242505219,0.41627,2401.9,2401.4,3.2078]
[1726242505424,0.41627,2401.9,2401.6,0.41631]
[1726242505828,0.41628,2401.9,2401.6,0.4163]
[1726242506327,0.41628,2401.9,2401.5,0.41633]
[1726242506520,1.4479,2402.1,2401.6,0.41632]
[1726242506821,0.41628,2401.9,2401.6,0.41632]
[1726242507226,1.4479,2402.1,2401.4,3.2078]
[1726242507412,0.41633,2401.6,2401.4,3.2078]
[1726242507720,4.24848,2401.9,2401.4,3.2078]
[1726242507918,0.41633,2401.6,2401.4,3.2078]
[1726242508329,4.164,2401.6,2401.4,3.62415]
[1726242508823,0.41634,2401.5,2401.4,3.2078]
[1726242509018,4.58034,2401.5,2401.4,3.2078]
[1726242509212,0.4164,2401.2,2400.9,5.08093]
[1726242509413,3.2078,2401.4,2400.6,3.2078]
[1726242509630,0.4164,2401.2,2400.9,3.2078]
[1726242509828,0.41638,2401.3,2401.0,0.41642]
[1726242510023,0.41638,2401.3,2400.4,3.7006]
[1726242510024,4.596,2402.0,2401.2,3.2078]
[1726242510230,2.08068,2402.7,2401.1,1.04101]
[1726242510231,3.2078,2403.6,2401.9,4.5]
[1726242510414,2.8591,2403.9,2403.4,3.2078]
[1726242510618,2.8591,2403.9,2403.0,1.04021]
[1726242510619,2.8591,2403.9,2403.5,3.2078]
[1726242510816,0.41598,2403.6,2403.5,3.2078]
[1726242511225,0.41602,2403.4,2403.2,3.2078]
[1726242511526,1.03994,2403.7,2403.2,3.2078]
[1726242511726,0.41602,2403.4,2403.2,3.2078]
[1726242512125,1.03994,2403.7,2403.2,3.2078]
[1726242512324,0.416,2403.5,2403.2,3.2078]
[1726242512627,1.03994,2403.7,2403.2,3.2078]
[1726242512628,0.41603,2403.3,2403.2,3.2078]
[1726242512925,0.41601,2403.4,2403.2,3.2078]
[1726242513521,0.416,2403.5,2403.2,3.2078]
[1726242513913,2.8591,2403.9,2403.3,0.41602]
[1726242514117,0.41598,2403.6,2403.3,0.41602]
[1726242514827,2.8591,2403.9,2403.2,3.2078]
[1726242515026,0.41603,2403.3,2403.2,3.2078]
[1726242515229,1.0401,2403.3,2402.9,3.2078]
[1726242515524,0.41608,2403.1,2402.9,3.2078]
[1726242515724,1.0401,2403.3,2402.9,3.2078]
[1726242515929,0.41608,2403.0,2402.9,3.2078]
[1726242516827,0.41608,2403.0,2402.5,3.2078]
[1726242516828,0.41616,2402.6,2402.5,3.2078]
[1726242517032,2.35469,2403.3,2402.5,3.62396]
[1726242517217,0.41614,2402.7,2402.5,3.2078]
[1726242517420,0.41613,2402.7,2402.5,3.62396]
[1726242517617,0.41613,2402.7,2402.5,3.2078]
[1726242517820,0.41613,2402.7,2402.5,3.62396]
[1726242518016,0.41613,2402.7,2401.8,1.04072]
[1726242518017,5.61893,2402.6,2402.2,3.2078]
[1726242518222,0.4162,2402.3,2402.2,3.2078]
[1726242519128,0.41617,2402.5,2402.2,3.624]
[1726242519326,0.4162,2402.3,2402.2,3.2078]
[1726242520220,1.3832,2402.8,2402.2,3.2078]
[1726242520421,2.35468,2403.3,2402.7,3.2078]
[1726242520632,1.3146,2403.3,2402.7,3.2078]
[1726242520931,0.4161,2402.9,2402.7,3.2078]
[1726242521331,1.04018,2403.1,2402.7,3.2078]
[1726242521629,0.41611,2402.8,2402.7,3.2078]
[1726242521828,5.5625,2403.3,2402.8,0.4161]
[1726242522032,5.5625,2403.3,2401.7,2.42004528]
[1726242522033,0.41604,2403.3,2403.0,3.2078]
[1726242522228,0.41606,2403.1,2403.0,3.2078]
[1726242522736,0.41611,2402.8,2402.7,3.2078]
[1726242523635,4.57771,2402.8,2402.7,3.2078]
[1726242524333,4.1616,2402.8,2402.7,3.2078]
[1726242524642,4.57771,2402.8,2402.7,3.2078]
[1726242525933,3.2078,2403.4,2402.7,3.2078]
[1726242525934,1.04015,2403.2,2402.7,3.2078]
[1726242526133,0.41605,2403.2,2403.0,3.2078]
[1726242526439,0.41606,2403.2,2403.0,3.62388]
[1726242526649,0.41606,2403.2,2403.0,3.2078]
[1726242526931,8.646,2404.1,2403.0,3.2078]
[1726242526932,3.2078,2404.8,2403.3,1.04005]
[1726242527233,3.2078,2404.8,2403.8,3.2078]
[1726242527234,0.41592,2403.9,2403.8,3.2078]
[1726242527437,0.41591,2404.0,2403.8,3.2078]
[1726242527637,1.03971,2404.2,2403.8,3.2078]
[1726242528137,0.41592,2403.9,2403.8,3.2078]
[1726242528342,1.45574,2403.9,2403.8,3.2078]
[1726242528547,5.61574,2403.9,2403.8,3.2078]
[1726242528750,4.57592,2403.9,2403.8,3.2078]
[1726242529629,4.16,2403.9,2403.8,3.2078]
[1726242529935,1.03956,2404.5,2403.8,3.62373]
[1726242530239,0.41592,2403.9,2403.8,3.2078]
[1726242531935,0.41592,2404.0,2403.8,3.2078]
[1726242532146,0.41592,2403.9,2403.8,3.2078]
[1726242532341,0.41589,2404.1,2404.0,0.41591]
[1726242532535,0.41589,2404.1,2403.8,3.2078]
[1726242532733,1.03962,2404.4,2404.0,0.41589]
[1726242532936,0.41587,2404.2,2404.1,3.2078]
[1726242533333,4.57507,2404.2,2404.1,3.2078]
[1726242533844,5.61476,2404.2,2404.1,3.2078]
[1726242534244,6.65445,2404.2,2404.1,3.2078]
[1726242534451,11.19889,2404.2,2404.1,3.2078]
[1726242534645,0.41592,2403.9,2403.8,3.62373]
[1726242535039,1.03969,2404.2,2403.8,3.62373]
[1726242535040,0.41592,2404.0,2403.9,0.41592]
[1726242535349,1.03969,2404.2,2403.9,0.41592]
[1726242535645,0.41591,2404.0,2403.9,0.41592]
[1726242535948,0.41591,2404.0,2403.8,3.2078]
[1726242536244,1.03965,2404.3,2403.8,3.2078]
[1726242536439,1.03965,2404.3,2403.9,0.41592]
[1726242536440,0.41592,2404.0,2403.9,0.41592]
[1726242536638,0.41592,2404.0,2403.9,3.62372]
[1726242537048,1.45569,2404.0,2403.9,3.2078]
[1726242537945,0.41592,2404.0,2403.9,3.2078]
[1726242538642,1.45569,2404.0,2403.9,3.2078]
[1726242539746,5.28636,2405.2,2404.3,0.41584]
[1726242539954,0.4158,2404.6,2404.5,3.2078]
[1726242540159,1.45531,2404.6,2404.5,3.2078]
[1726242540448,5.61371,2404.6,2404.5,3.2078]
[1726242541347,5.61371,2404.6,2403.7,1.03989]
[1726242541348,0.4159,2404.1,2403.9,3.2078]
[1726242541545,0.4159,2404.1,2403.9,3.62371]
[1726242541745,0.4159,2404.1,2404.0,0.41591]
[1726242542052,1.03966,2404.3,2403.9,3.62371]
[1726242542238,0.41585,2404.3,2404.2,3.2078]
[1726242542851,1.03961,2404.4,2404.2,3.2078]
[1726242542852,0.41585,2404.4,2404.2,3.62366]
[1726242543450,0.41585,2404.4,2404.3,0.41585]
[1726242543643,0.41585,2404.4,2404.2,3.62366]
[1726242544042,0.41585,2404.4,2404.3,0.41585]
[1726242544249,0.41584,2404.4,2404.3,0.41585]
[1726242544448,0.41585,2404.3,2404.2,3.62366]
[1726242544945,0.41585,2404.3,2404.2,3.2078]
[1726242545252,5.61469,2404.3,2404.2,3.2078]
[1726242545743,6.65433,2404.3,2404.2,3.2078]
[1726242545938,2.49513,2404.3,2404.2,3.2078]
[1726242546339,1.45549,2404.3,2404.2,3.2078]
[1726242546749,5.61469,2404.3,2404.2,3.2078]
[1726242546948,6.65433,2404.3,2404.2,3.2078]
[1726242547157,6.65433,2404.3,2403.9,3.2078]
[1726242547158,1.03976,2404.1,2403.9,3.2078]
[1726242547451,0.41591,2404.0,2403.9,3.2078]
[1726242548657,1.45568,2404.0,2403.9,3.2078]
[1726242548947,0.41591,2404.0,2403.9,3.2078]
[1726242549137,1.45568,2404.0,2403.9,3.2078]
[1726242549747,0.41591,2404.0,2403.9,3.2078]
[1726242549953,0.41591,2404.0,2403.9,3.62372]
[1726242550339,0.41587,2404.3,2404.1,0.41588]
[1726242550542,0.41585,2404.3,2404.2,3.2078]
[1726242551140,1.03949,2404.7,2404.2,3.62366]
[1726242551141,0.41585,2404.4,2404.2,3.62366]
[1726242551346,1.03953,2404.6,2404.2,3.62366]
[1726242551547,1.03951,2404.6,2404.5,3.2078]
[1726242551845,0.41585,2404.3,2404.2,3.2078]
[1726242552055,1.45549,2404.3,2404.2,3.2078]
[1726242552240,5.61469,2404.3,2404.2,3.2078]
[1726242552439,0.41595,2403.8,2403.7,3.2078]
[1726242552642,0.41595,2403.8,2403.7,3.62376]
[1726242552844,0.41594,2403.9,2403.7,3.62376]
[1726242553046,0.41594,2403.9,2403.7,3.2078]
[1726242553242,1.03973,2404.1,2403.7,3.62375]
[1726242553441,1.45562,2404.1,2404.0,3.2078]
[1726242553654,5.61562,2404.1,2404.0,3.2078]
[1726242553950,5.61562,2404.1,2403.7,3.2078]
[1726242553951,0.41594,2403.8,2403.7,3.2078]
[1726242554341,0.41593,2403.9,2403.8,0.41594]
[1726242554542,3.40613,2404.8,2403.7,4.24769]
[1726242554543,1.0395,2404.7,2403.7,4.24769]
[1726242554745,0.41582,2404.5,2404.4,3.62364]
[1726242554946,0.41578,2404.8,2404.6,0.41579]
[1726242555151,0.41578,2404.8,2404.0,5.02976]
[1726242555152,1.03932,2405.1,2404.7,3.2078]
[1726242555457,0.41577,2404.8,2404.7,3.2078]
[1726242555944,4.1584,2404.8,2404.3,3.2078]
[1726242556146,1.03965,2404.3,2403.8,1.3249]
[1726242556346,1.03965,2404.3,2404.2,3.2078]
[1726242556347,0.41585,2404.3,2404.2,3.2078]
[1726242556546,1.45549,2404.3,2404.2,3.2078]
[1726242558948,6.65433,2404.3,2404.2,3.2078]
[1726242559140,6.65433,2404.3,2403.8,3.62374]
[1726242559141,0.41592,2403.9,2403.8,3.62374]
[1726242559447,0.41592,2403.9,2403.8,3.2078]
[1726242560054,1.45574,2403.9,2403.8,3.2078]
[1726242560253,0.41592,2403.9,2403.8,3.2078]
[1726242560552,1.45574,2403.9,2403.8,3.2078]
[1726242561449,2.49556,2403.9,2403.8,3.2078]
[1726242561750,1.45593,2403.6,2403.5,3.2078]
[1726242561953,2.49588,2403.6,2403.5,3.2078]
[1726242562174,6.65668,2403.6,2403.5,3.2078]
[1726242562451,1.45593,2403.6,2403.5,3.2078]
[1726242562653,2.40379,2404.0,2403.5,3.2078]
[1726242562844,0.41592,2403.9,2403.8,3.2078]
[1726242563045,1.0397,2404.2,2403.8,3.62374]
[1726242563252,1.0397,2404.2,2403.8,3.2078]
[1726242563447,0.41592,2403.9,2403.8,3.2078]
[1726242564556,1.45574,2403.9,2403.8,3.2078]
[1726242564951,0.41592,2403.9,2403.8,3.2078]
[1726242565653,0.41592,2403.9,2403.8,3.62374]
[1726242566162,1.0397,2404.2,2403.8,3.62374]
[1726242566369,1.45557,2404.2,2404.1,3.2078]
[1726242566862,5.61477,2404.2,2404.1,3.2078]
[1726242568362,0.41587,2404.2,2404.1,3.2078]
[1726242568667,1.45556,2404.2,2404.1,3.2078]
[1726242569659,0.41587,2404.2,2404.1,3.2078]
[1726242571158,0.41587,2404.2,2404.1,3.62369]
[1726242571366,1.03961,2404.4,2404.1,3.62369]
[1726242571559,0.41587,2404.2,2404.1,3.62369]
[1726242571956,1.03948,2404.7,2404.1,7.367]
[1726242572158,1.03948,2404.7,2404.6,0.4158]
[1726242572159,0.41579,2404.7,2404.6,0.4158]
[1726242572463,0.41578,2404.8,2404.6,0.41579]
[1726242572655,1.4172,2405.0,2404.6,0.41579]
[1726242572856,0.41578,2404.8,2404.7,3.2078]
[1726242573062,0.41577,2404.8,2404.7,3.2078]
[1726242573266,0.41577,2404.8,2404.0,2.85736187]
[1726242573267,0.41582,2404.6,2404.4,3.2078]
[1726242573456,0.41582,2404.6,2404.4,3.62363]
[1726242574166,0.41581,2404.6,2404.4,3.2078]
[1726242574360,0.41581,2404.6,2404.4,3.62363]
[1726242574568,0.41579,2404.7,2404.5,0.41581]
[1726242574963,0.41579,2404.7,2404.6,0.4158]
[1726242575573,1.4172,2405.0,2404.6,4.1584]
[1726242575761,1.3549,2405.4,2404.9,3.2078]
[1726242576071,2.39408,2405.4,2404.9,3.2078]
[1726242576368,0.41567,2405.4,2405.3,3.2078]
[1726242576569,0.41566,2405.4,2405.3,3.2078]
[1726242577065,3.41305803,2406.2,2405.4,0.41565]
[1726242577269,0.4156,2405.8,2405.6,0.41562]
[1726242577467,0.41561,2405.7,2405.6,3.2078]
[1726242578172,2.8342,2406.1,2405.6,3.2078]
[1726242578365,3.74902906,2407.0,2406.0,7.1978]
[1726242578559,2.07598,2408.2,2405.8,3.99]
[1726242578560,4.32116852,2407.6,2406.9,7.1978]
[1726242578771,3.79925944,2408.0,2407.5,7.1978]
[1726242579073,5.40146065,2408.6,2406.1,11.39506824]
[1726242579074,3.79925944,2408.6,2407.9,3.2078]
[1726242579276,3.79925944,2408.6,2406.4,0.212]
[1726242579277,4.152,2408.5,2407.3,3.2078]
[1726242579462,7.1978,2408.6,2406.6,0.212]
[1726242579463,3.99,2408.0,2406.6,0.212]
[1726242579669,3.99,2407.6,2406.5,3.2078]